Workbook

Sheet Anleitung
A1: Spieltheorie - Spitzenverdiener
A2: Anleitung Auswertung Lernspiel Cheflöhne
A4: Hinweis: Die konkrete Spielanleitung befindet sich im Dokument «Spielanleitung Cheflöhne». Es werden hier lediglich die Schritte zur Auswertung des Spiels erläutert. Die Grunddaten des Spiels sind im Tabellenblatt «Grunddaten» hinterlegt.
A8: Falls Sie das Spiel bereits einmal durchgeführt haben, müssen Sie hier den Spielstand auf 0 setzen:
A11: Schritt 1: Nach erfolgter Besprechung in den Gruppen überträgt die Lehrperson (oder die Lernenden selbst) für das Jahr 1 die entsprechenden Höchstgebote der jeweiligen Firma für jede der vier Führungspersonen vom «Formular für die Lernenden» in das entsprechende, für jede Firma individuelle, Tabellenblatt (Firma A - Firma E). Starten Sie mit Firma A und bewegen Sie sich mit den grünen Vorwärts-Buttons zur jeweils nächsten Firma.
A26: Schritt 2: Nachdem Sie für alle Firmen die Angebote für das Jahr 1 eingegeben haben, können Sie sich mit dem grünen Vorwärts-Button im Tabellenblatt der Firma E zur Zuweisung der Managerinnen und Manager (Jahr 1) begeben.
B30: a) In der ersten Tabelle «Angebote» werden alle Angebote von Firma A bis Firma E automatisch erfasst. Für alle Managerinnen und Manager, beginnend mit demjenigen, welcher den höchsten Bruttogewinn generiert (Albert Adam), wird das jeweilige Höchstgebot ermittelt. Hat eine Firma eine entsprechende Managerin oder einen entsprechenden Manager erworben, fällt sie für das Bieten um die daraufolgenden (schlechteren) Managerinnen und Manager aus dem Rennen. Dies wird durch das Durchstreichen der Angebote ersichtlich gemacht. Falls keine der Zellen rot markiert wird, können Sie die nächsten drei Punkte (b,c und d) überspringen.
B36: b) Falls es mehrere gleichwertige Maximas gibt, werden die entsprechenden Zellen rot markiert. Gemäss Spielregeln muss dann ein Münzwurf ausgeführt werden. Drücken Sie dafür die entsprechenden Münzwürfe an, welche ausgeführt werden müssen. Den gleichbietenden Firmen wird dabei eine Zufallszahl zwischen 0 und 1 zugeteilt. Diejenige Firma mit der höchsten Zufallszahl gewinnt.
B40: Beispiel: In dem konkreten Fall rechts müssen Sie beispielsweise zuerst einen Münzwurf für Claudia Custer und danach einen für Dieter Diem durchführen. Falls Sie mehr als einen Münzwurf durchführen müssen, sollten Sie immer mit demjenigen für die Managerin oder den Manager starten, welche(r) den höheren Bruttogewinn generiert (Albert Adam > Bertha Binnig > Claudia Custer > Dieter Diem).
B45: c) In der Tabelle Zufallszahlen werden die bei einem allfälligen Münzwurf zugeteilten Zahlen entsprechend gelb markiert.
B54: d) Sind alle notwendigen Münzwürfe durchgeführt, wird dies entsprechend angezeigt.
B63: e) Die Tabellen «Rang» und «Angebote» markieren in grün jeweils das entsprechend höchste Gebot. f) Die Tabelle «Zuweisung» unten rechts fasst die entsprechend höchstbietenden Firmen und Gebote zusammen. g) Zur entsprechenden Auswertung gelangen Sie wiederum mit dem Vorwärts-Button.
A73: Schritt 3: Im Tabellenblatt «Auswertung Managerlöhne» wird für alle Managerinnen und Manager das jeweils höchste Gehalt pro Spielrunde fesgehalten.
A78: Schritt 4: Im Tabellenblatt «Auswertung Firmen» werden für alle Firmen die entsprechenden Brutto- und Nettogewinne sowie Kapitalrenditen automatisch berechnet und festgehalten. Dieses Tabellenblatt dient somit als Lösungshinweis für die Tabelle auf Seite 2 im «Formular für die Lernenden».
A84: Schritt 5: Widerholen Sie diesen Vorgang (Schritt 1-4), bis vier alle 4 Perioden (Jahre) gespielt sind. Wie in der Spielanleitung vermerkt, veränderen sich die Grunddaten und insbesondere das Kapital während dem Spiel nicht, d.h. der Gewinn wird Ende Jahr jeweils vollständig ausgeschüttet.
A88: Schritt 6: Die Ergebnisse über alle Jahre werden im Tabellenblatt «Grafiken» entsprechend grafisch dargestellt. Diese Grafiken können als Grundlage für eine anschliessende Diskussion verwendet werden.
A91: Hinweis: Im Tabellenblatt Musterlösung wird die spieltheoretisch optimale Lösung präsentiert (vgl. Aufgabe 2 im Aufgabenset).

Sheet Grunddaten
A1: Spieltheorie - Spitzenverdiener
A2: Grunddaten Lernspiel Cheflöhne
A4: Markt für Manager
A5: Manager | B5: Bruttogewinn (% Firmenkapital) | C5: Jahreslohn
A6: Albert Adam | B6: 0.14 | C6: zu verhandeln
A7: Bertha Binnig | B7: 0.13 | C7: zu verhandeln
A8: Claudia Custer | B8: 0.12 | C8: zu verhandeln
A9: Dieter Diem | B9: 0.11 | C9: zu verhandeln
A10: Normal | B10: 0.1 | C10: 300000
A12: Kapitalisierung der Unternehmen
A13: Firma | B13: Kapitalisierung
A14: Firma A | B14: 5000000
A15: Firma B | B15: 10000000
A16: Firma C | B16: 30000000
A17: Firma D | B17: 400000000
A18: Firma E | B18: 7000000000

Sheet Firma A
A1: Spieltheorie - Spitzenverdiener
A2: Lernspiel Cheflöhne - Angebote Firma A
A4: Kapitalisierung: | B4: =Grunddaten!B14 -> 5000000
A6: 1. Jahr | B6: Manager | C6: Jahresgehalt | E6: 3. Jahr | F6: Manager | G6: Jahresgehalt
B7: Albert Adam | F7: Albert Adam
B8: Bertha Binnig | F8: Bertha Binnig
B9: Claudia Custer | F9: Claudia Custer
B10: Dieter Diem | F10: Dieter Diem
B11: Normale Führungsperson | C11: =Grunddaten!C10 -> 300000 | F11: Normale Führungsperson | G11: =Grunddaten!C10 -> 300000
A13: 2. Jahr | B13: Manager | C13: Jahresgehalt | E13: 4. Jahr | F13: Manager | G13: Jahresgehalt
B14: Albert Adam | F14: Albert Adam
B15: Bertha Binnig | F15: Bertha Binnig
B16: Claudia Custer | F16: Claudia Custer
B17: Dieter Diem | F17: Dieter Diem
B18: Normale Führungsperson | C18: =Grunddaten!C10 -> 300000 | F18: Normale Führungsperson | G18: =Grunddaten!C10 -> 300000
B22: Zurück zur Anleitung | F22: Vorwärts zu Firma B

Sheet Firma B
A1: Spieltheorie - Spitzenverdiener
A2: Lernspiel Cheflöhne - Angebote Firma B
A4: Kapitalisierung: | B4: =Grunddaten!B15 -> 10000000
A6: 1. Jahr | B6: Manager | C6: Jahresgehalt | E6: 3. Jahr | F6: Manager | G6: Jahresgehalt
B7: Albert Adam | F7: Albert Adam
B8: Bertha Binnig | F8: Bertha Binnig
B9: Claudia Custer | F9: Claudia Custer
B10: Dieter Diem | F10: Dieter Diem
B11: Normale Führungsperson | C11: =Grunddaten!C10 -> 300000 | F11: Normale Führungsperson | G11: =Grunddaten!C10 -> 300000
A13: 2. Jahr | B13: Manager | C13: Jahresgehalt | E13: 4. Jahr | F13: Manager | G13: Jahresgehalt
B14: Albert Adam | F14: Albert Adam
B15: Bertha Binnig | F15: Bertha Binnig
B16: Claudia Custer | F16: Claudia Custer
B17: Dieter Diem | F17: Dieter Diem
B18: Normale Führungsperson | C18: =Grunddaten!C10 -> 300000 | F18: Normale Führungsperson | G18: =Grunddaten!C10 -> 300000
B22: Zurück zur Anleitung | F22: Vorwärts zu Firma C

Sheet Firma C
A1: Spieltheorie - Spitzenverdiener
A2: Lernspiel Cheflöhne - Angebote Firma C
A4: Kapitalisierung: | B4: =Grunddaten!B16 -> 30000000
A6: 1. Jahr | B6: Manager | C6: Jahresgehalt | E6: 3. Jahr | F6: Manager | G6: Jahresgehalt
B7: Albert Adam | F7: Albert Adam
B8: Bertha Binnig | F8: Bertha Binnig
B9: Claudia Custer | F9: Claudia Custer
B10: Dieter Diem | F10: Dieter Diem
B11: Normale Führungsperson | C11: =Grunddaten!C10 -> 300000 | F11: Normale Führungsperson | G11: =Grunddaten!C10 -> 300000
A13: 2. Jahr | B13: Manager | C13: Jahresgehalt | E13: 4. Jahr | F13: Manager | G13: Jahresgehalt
B14: Albert Adam | F14: Albert Adam
B15: Bertha Binnig | F15: Bertha Binnig
B16: Claudia Custer | F16: Claudia Custer
B17: Dieter Diem | F17: Dieter Diem
B18: Normale Führungsperson | C18: =Grunddaten!C10 -> 300000 | F18: Normale Führungsperson | G18: =Grunddaten!C10 -> 300000
B22: Zurück zur Anleitung | F22: Vorwärts zu Firma D

Sheet Firma D
A1: Spieltheorie - Spitzenverdiener
A2: Lernspiel Cheflöhne - Angebote Firma D
A4: Kapitalisierung: | B4: =Grunddaten!B17 -> 400000000
A6: 1. Jahr | B6: Manager | C6: Jahresgehalt | E6: 3. Jahr | F6: Manager | G6: Jahresgehalt
B7: Albert Adam | F7: Albert Adam
B8: Bertha Binnig | F8: Bertha Binnig
B9: Claudia Custer | F9: Claudia Custer
B10: Dieter Diem | F10: Dieter Diem
B11: Normale Führungsperson | C11: =Grunddaten!C10 -> 300000 | F11: Normale Führungsperson | G11: =Grunddaten!C10 -> 300000
A13: 2. Jahr | B13: Manager | C13: Jahresgehalt | E13: 4. Jahr | F13: Manager | G13: Jahresgehalt
B14: Albert Adam | F14: Albert Adam
B15: Bertha Binnig | F15: Bertha Binnig
B16: Claudia Custer | F16: Claudia Custer
B17: Dieter Diem | F17: Dieter Diem
B18: Normale Führungsperson | C18: =Grunddaten!C10 -> 300000 | F18: Normale Führungsperson | G18: =Grunddaten!C10 -> 300000
B22: Zurück zur Anleitung | F22: Vorwärts zu Firma E

Sheet Firma E
A1: Spieltheorie - Spitzenverdiener
A2: Lernspiel Cheflöhne - Angebote Firma E
A4: Kapitalisierung: | B4: =Grunddaten!B18 -> 7000000000
A6: 1. Jahr | B6: Manager | C6: Jahresgehalt | E6: 3. Jahr | F6: Manager | G6: Jahresgehalt
B7: Albert Adam | F7: Albert Adam
B8: Bertha Binnig | F8: Bertha Binnig
B9: Claudia Custer | F9: Claudia Custer
B10: Dieter Diem | F10: Dieter Diem
B11: Normale Führungsperson | C11: =Grunddaten!C10 -> 300000 | F11: Normale Führungsperson | G11: =Grunddaten!C10 -> 300000
A13: 2. Jahr | B13: Manager | C13: Jahresgehalt | E13: 4. Jahr | F13: Manager | G13: Jahresgehalt
B14: Albert Adam | F14: Albert Adam
B15: Bertha Binnig | F15: Bertha Binnig
B16: Claudia Custer | F16: Claudia Custer
B17: Dieter Diem | F17: Dieter Diem
B18: Normale Führungsperson | C18: =Grunddaten!C10 -> 300000 | F18: Normale Führungsperson | G18: =Grunddaten!C10 -> 300000
B22: Zurück zur Anleitung | F22: Vorwärts zur Zuweisung Manager Jahr 1
F24: Vorwärts zur Zuweisung Manager Jahr 2
F26: Vorwärts zur Zuweisung Manager Jahr 3
F28: Vorwärts zur Zuweisung Manager Jahr 4

Sheet Jahr 1
A1: Spieltheorie - Spitzenverdiener
A2: Lernspiel Cheflöhne - Zuweisung Manager (1. Jahr)
A4: Angebote im 1. Jahr | B4: Firma A | C4: Firma B | D4: Firma C | E4: Firma D | F4: Firma E | H4: Maximum | I4: # Maxima | J4: Münzwurf
A5: Albert Adam | B5: ='Firma A'!C7 -> 0 | C5: ='Firma B'!C7 -> 0 | D5: ='Firma C'!C7 -> 0 | E5: ='Firma D'!C7 -> 0 | F5: ='Firma E'!C7 -> 0 | H5: =MAX(B5:F5) -> 0 | I5: =COUNTIF(B5:F5,H5) -> 5 | J5: =IF(I5>1,"JA","NEIN") -> JA | K5: NEIN
A6: Bertha Binnig | B6: ='Firma A'!C8 -> 0 | C6: ='Firma B'!C8 -> 0 | D6: ='Firma C'!C8 -> 0 | E6: ='Firma D'!C8 -> 0 | F6: ='Firma E'!C8 -> 0 | H6: =MAX(IF(B31:F31>1,IF(ISNUMBER(B31:F31)=TRUE,B6:F6))) -> 0 | I6: =COUNTIFS(B6:F6,H6,B31:F31,"<>1",B31:F31,"<>NA") -> 0 | J6: =IF(I6>1,"JA","NEIN") -> NEIN | K6: NEIN
A7: Claudia Custer | B7: ='Firma A'!C9 -> 0 | C7: ='Firma B'!C9 -> 0 | D7: ='Firma C'!C9 -> 0 | E7: ='Firma D'!C9 -> 0 | F7: ='Firma E'!C9 -> 0 | H7: =MAX(IF(B32:F32>1,IF(ISNUMBER(B32:F32)=TRUE,B7:F7))) -> 0 | I7: =COUNTIFS(B7:F7,H7,B32:F32,"<>1",B32:F32,"<>NA") -> 0 | J7: =IF(I7>1,"JA","NEIN") -> NEIN | K7: NEIN
A8: Dieter Diem | B8: ='Firma A'!C10 -> 0 | C8: ='Firma B'!C10 -> 0 | D8: ='Firma C'!C10 -> 0 | E8: ='Firma D'!C10 -> 0 | F8: ='Firma E'!C10 -> 0 | H8: =MAX(IF(B33:F33>1,IF(ISNUMBER(B33:F33)=TRUE,B8:F8))) -> 0 | I8: =COUNTIFS(B8:F8,H8,B33:F33,"<>1",B33:F33,"<>NA") -> 0 | J8: =IF(I8>1,"JA","NEIN") -> NEIN | K8: NEIN
A9: Normal | B9: ='Firma A'!C11 -> 300000 | C9: ='Firma B'!C11 -> 300000 | D9: ='Firma C'!C11 -> 300000 | E9: ='Firma D'!C11 -> 300000 | F9: ='Firma E'!C11 -> 300000 | H9: =IF(K9=0,"Sie müssen keinen Münzwurf (mehr) ausführen!","Sie müssen mind. noch einen Münzwurf ausführen!") -> Sie müssen mind. noch einen Münzwurf ausführen! | K9: =IF(OR(J5="JA",J6="JA",J7="JA",J8="JA"),IF(J5=K5,IF(J6=K6,IF(J7=K7,IF(J8=K8,0,1),1),1),1),0) -> 1
A11: Zufallszahlen im 1. Jahr | B11: Firma A | C11: Firma B | D11: Firma C | E11: Firma D | F11: Firma E
A12: Albert Adam | B12: =IF(AND(B5=$H$5,$I$5>1),RAND(),"") -> 0.2221206301 | C12: =IF(AND(C5=$H$5,$I$5>1),RAND(),"") -> 0.06155709827 | D12: =IF(AND(D5=$H$5,$I$5>1),RAND(),"") -> 0.6624750987 | E12: =IF(AND(E5=$H$5,$I$5>1),RAND(),"") -> 0.4579708471 | F12: =IF(AND(F5=$H$5,$I$5>1),RAND(),"") -> 0.5723255616
A13: Bertha Binnig | B13: =IF(AND(B6=$H$6,$I$6>1,B31>1,B31<>"na"),RAND(),"") ->  | C13: =IF(AND(C6=$H$6,$I$6>1,C31>1,C31<>"na"),RAND(),"") ->  | D13: =IF(AND(D6=$H$6,$I$6>1,D31>1,D31<>"na"),RAND(),"") ->  | E13: =IF(AND(E6=$H$6,$I$6>1,E31>1,E31<>"na"),RAND(),"") ->  | F13: =IF(AND(F6=$H$6,$I$6>1,F31>1,F31<>"na"),RAND(),"") -> 
A14: Claudia Custer | B14: =IF(AND(B7=$H$7,$I$7>1,B32>1,B32<>"na"),RAND(),"") ->  | C14: =IF(AND(C7=$H$7,$I$7>1,C32>1,C32<>"na"),RAND(),"") ->  | D14: =IF(AND(D7=$H$7,$I$7>1,D32>1,D32<>"na"),RAND(),"") ->  | E14: =IF(AND(E7=$H$7,$I$7>1,E32>1,E32<>"na"),RAND(),"") ->  | F14: =IF(AND(F7=$H$7,$I$7>1,F32>1,F32<>"na"),RAND(),"") -> 
A15: Dieter Diem | B15: =IF(AND(B8=$H$8,$I$8>1,B33>1,B33<>"na"),RAND(),"") ->  | C15: =IF(AND(C8=$H$8,$I$8>1,C33>1,C33<>"na"),RAND(),"") ->  | D15: =IF(AND(D8=$H$8,$I$8>1,D33>1,D33<>"na"),RAND(),"") ->  | E15: =IF(AND(E8=$H$8,$I$8>1,E33>1,E33<>"na"),RAND(),"") ->  | F15: =IF(AND(F8=$H$8,$I$8>1,F33>1,F33<>"na"),RAND(),"") -> 
A17: Zufallszahlen im 1. Jahr | B17: Firma A | C17: Firma B | D17: Firma C | E17: Firma D | F17: Firma E
A18: Albert Adam
A19: Bertha Binnig
A20: Claudia Custer
A21: Dieter Diem
A23: Angebote* im 1. Jahr | B23: Firma A | C23: Firma B | D23: Firma C | E23: Firma D | F23: Firma E
A24: Albert Adam | B24: =IF(AND($I$5>1,B5=$H$5),B5+1*B18,B5) -> 0 | C24: =IF(AND($I$5>1,C5=$H$5),C5+1*C18,C5) -> 0 | D24: =IF(AND($I$5>1,D5=$H$5),D5+1*D18,D5) -> 0 | E24: =IF(AND($I$5>1,E5=$H$5),E5+1*E18,E5) -> 0 | F24: =IF(AND($I$5>1,F5=$H$5),F5+1*F18,F5) -> 0
A25: Bertha Binnig | B25: =IF(AND($I$6>1,B6=$H$6),B6+1*B19,B6) -> 0 | C25: =IF(AND($I$6>1,C6=$H$6),C6+1*C19,C6) -> 0 | D25: =IF(AND($I$6>1,D6=$H$6),D6+1*D19,D6) -> 0 | E25: =IF(AND($I$6>1,E6=$H$6),E6+1*E19,E6) -> 0 | F25: =IF(AND($I$6>1,F6=$H$6),F6+1*F19,F6) -> 0
A26: Claudia Custer | B26: =IF(AND($I$7>1,B7=$H$7),B7+1*B20,B7) -> 0 | C26: =IF(AND($I$7>1,C7=$H$7),C7+1*C20,C7) -> 0 | D26: =IF(AND($I$7>1,D7=$H$7),D7+1*D20,D7) -> 0 | E26: =IF(AND($I$7>1,E7=$H$7),E7+1*E20,E7) -> 0 | F26: =IF(AND($I$7>1,F7=$H$7),F7+1*F20,F7) -> 0
A27: Dieter Diem | B27: =IF(AND($I$8>1,B8=$H$8),B8+1*B21,B8) -> 0 | C27: =IF(AND($I$8>1,C8=$H$8),C8+1*C21,C8) -> 0 | D27: =IF(AND($I$8>1,D8=$H$8),D8+1*D21,D8) -> 0 | E27: =IF(AND($I$8>1,E8=$H$8),E8+1*E21,E8) -> 0 | F27: =IF(AND($I$8>1,F8=$H$8),F8+1*F21,F8) -> 0
A28: Normal | B28: =B9 -> 300000 | C28: =C9 -> 300000 | D28: =D9 -> 300000 | E28: =E9 -> 300000 | F28: =F9 -> 300000
A30: Rang im 1. Jahr | B30: Firma A | C30: Firma B | D30: Firma C | E30: Firma D | F30: Firma E
A31: Albert Adam | B31: =RANK(B24,$B$24:$F$24) -> 1 | C31: =RANK(C24,$B$24:$F$24) -> 1 | D31: =RANK(D24,$B$24:$F$24) -> 1 | E31: =RANK(E24,$B$24:$F$24) -> 1 | F31: =RANK(F24,$B$24:$F$24) -> 1
A32: Bertha Binnig | B32: =IF(AND(B$31>1,B$31<>"NA"),COUNTIFS($B$25:$F$25,">"&B25,$B$31:$F$31,">"&1)+1,"NA") -> NA | C32: =IF(AND(C$31>1,C$31<>"NA"),COUNTIFS($B$25:$F$25,">"&C25,$B$31:$F$31,">"&1)+1,"NA") -> NA | D32: =IF(AND(D$31>1,D$31<>"NA"),COUNTIFS($B$25:$F$25,">"&D25,$B$31:$F$31,">"&1)+1,"NA") -> NA | E32: =IF(AND(E$31>1,E$31<>"NA"),COUNTIFS($B$25:$F$25,">"&E25,$B$31:$F$31,">"&1)+1,"NA") -> NA | F32: =IF(AND(F$31>1,F$31<>"NA"),COUNTIFS($B$25:$F$25,">"&F25,$B$31:$F$31,">"&1)+1,"NA") -> NA
A33: Claudia Custer | B33: =IF(AND(B$32>1,B$32<>"NA"),COUNTIFS($B$26:$F$26,">"&B26,$B$32:$F$32,">"&1)+1,"NA") -> NA | C33: =IF(AND(C$32>1,C$32<>"NA"),COUNTIFS($B$26:$F$26,">"&C26,$B$32:$F$32,">"&1)+1,"NA") -> NA | D33: =IF(AND(D$32>1,D$32<>"NA"),COUNTIFS($B$26:$F$26,">"&D26,$B$32:$F$32,">"&1)+1,"NA") -> NA | E33: =IF(AND(E$32>1,E$32<>"NA"),COUNTIFS($B$26:$F$26,">"&E26,$B$32:$F$32,">"&1)+1,"NA") -> NA | F33: =IF(AND(F$32>1,F$32<>"NA"),COUNTIFS($B$26:$F$26,">"&F26,$B$32:$F$32,">"&1)+1,"NA") -> NA
A34: Dieter Diem | B34: =IF(AND(B$33>1,B$33<>"NA"),COUNTIFS($B$27:$F$27,">"&B27,$B$33:$F$33,">"&1)+1,"NA") -> NA | C34: =IF(AND(C$33>1,C$33<>"NA"),COUNTIFS($B$27:$F$27,">"&C27,$B$33:$F$33,">"&1)+1,"NA") -> NA | D34: =IF(AND(D$33>1,D$33<>"NA"),COUNTIFS($B$27:$F$27,">"&D27,$B$33:$F$33,">"&1)+1,"NA") -> NA | E34: =IF(AND(E$33>1,E$33<>"NA"),COUNTIFS($B$27:$F$27,">"&E27,$B$33:$F$33,">"&1)+1,"NA") -> NA | F34: =IF(AND(F$33>1,F$33<>"NA"),COUNTIFS($B$27:$F$27,">"&F27,$B$33:$F$33,">"&1)+1,"NA") -> NA
A35: Normal | B35: =IF(AND(B$34>1,B$34<>"NA"),COUNTIFS($B$28:$F$28,">"&B28,$B$34:$F$34,">"&1)+1,"NA") -> NA | C35: =IF(AND(C$34>1,C$34<>"NA"),COUNTIFS($B$28:$F$28,">"&C28,$B$34:$F$34,">"&1)+1,"NA") -> NA | D35: =IF(AND(D$34>1,D$34<>"NA"),COUNTIFS($B$28:$F$28,">"&D28,$B$34:$F$34,">"&1)+1,"NA") -> NA | E35: =IF(AND(E$34>1,E$34<>"NA"),COUNTIFS($B$28:$F$28,">"&E28,$B$34:$F$34,">"&1)+1,"NA") -> NA | F35: =IF(AND(F$34>1,F$34<>"NA"),COUNTIFS($B$28:$F$28,">"&F28,$B$34:$F$34,">"&1)+1,"NA") -> NA
A37: Angebote im 1. Jahr | B37: Firma A | C37: Firma B | D37: Firma C | E37: Firma D | F37: Firma E | H37: Zuweisung | I37: Firma | J37: Jahresgehalt
A38: Albert Adam | B38: =B5 -> 0 | C38: 0 | D38: 0 | E38: 0 | F38: 0 | H38: Albert Adam | I38: =INDEX($B$30:$F$30,MATCH(1,B31:F31,0)) -> Firma A | J38: =INDEX(B5:F5,MATCH(I38,$B$4:$F$4,0)) -> 0 | M38: Zurück zur Anleitung
A39: Bertha Binnig | B39: 0 | C39: 0 | D39: 0 | E39: 0 | F39: 0 | H39: Bertha Binnig | I39: =INDEX($B$30:$F$30,MATCH(1,B32:F32,0)) ->  | J39: =INDEX(B6:F6,MATCH(I39,$B$4:$F$4,0)) -> 
A40: Claudia Custer | B40: 0 | C40: 0 | D40: 0 | E40: 0 | F40: 0 | H40: Claudia Custer | I40: =INDEX($B$30:$F$30,MATCH(1,B33:F33,0)) ->  | J40: =INDEX(B7:F7,MATCH(I40,$B$4:$F$4,0)) -> 
A41: Dieter Diem | B41: 0 | C41: 0 | D41: 0 | E41: 0 | F41: 0 | H41: Dieter Diem | I41: =INDEX($B$30:$F$30,MATCH(1,B34:F34,0)) ->  | J41: =INDEX(B8:F8,MATCH(I41,$B$4:$F$4,0)) -> 
A42: Normal | B42: 300000 | C42: 300000 | D42: 300000 | E42: 300000 | F42: 300000 | H42: Normal | I42: =INDEX($B$30:$F$30,MATCH(1,B35:F35,0)) ->  | J42: =INDEX(B9:F9,MATCH(I42,$B$4:$F$4,0)) ->  | M42: Vorwärts zur Auswertung Managerlöhne

Sheet Jahr 2
A1: Spieltheorie - Spitzenverdiener
A2: Lernspiel Cheflöhne - Zuweisung Manager (2. Jahr)
A4: Angebote im 2. Jahr | B4: Firma A | C4: Firma B | D4: Firma C | E4: Firma D | F4: Firma E | H4: Maximum | I4: # Maxima | J4: Münzwurf
A5: Albert Adam | B5: ='Firma A'!C14 -> 0 | C5: ='Firma B'!C14 -> 0 | D5: ='Firma C'!C14 -> 0 | E5: ='Firma D'!C14 -> 0 | F5: ='Firma E'!C14 -> 0 | H5: =MAX(B5:F5) -> 0 | I5: =COUNTIF(B5:F5,H5) -> 5 | J5: =IF(I5>1,"JA","NEIN") -> JA | K5: NEIN
A6: Bertha Binnig | B6: ='Firma A'!C15 -> 0 | C6: ='Firma B'!C15 -> 0 | D6: ='Firma C'!C15 -> 0 | E6: ='Firma D'!C15 -> 0 | F6: ='Firma E'!C15 -> 0 | H6: =MAX(IF(B31:F31>1,IF(ISNUMBER(B31:F31)=TRUE,B6:F6))) -> 0 | I6: =COUNTIFS(B6:F6,H6,B31:F31,"<>1",B31:F31,"<>NA") -> 0 | J6: =IF(I6>1,"JA","NEIN") -> NEIN | K6: NEIN
A7: Claudia Custer | B7: ='Firma A'!C16 -> 0 | C7: ='Firma B'!C16 -> 0 | D7: ='Firma C'!C16 -> 0 | E7: ='Firma D'!C16 -> 0 | F7: ='Firma E'!C16 -> 0 | H7: =MAX(IF(B32:F32>1,IF(ISNUMBER(B32:F32)=TRUE,B7:F7))) -> 0 | I7: =COUNTIFS(B7:F7,H7,B32:F32,"<>1",B32:F32,"<>NA") -> 0 | J7: =IF(I7>1,"JA","NEIN") -> NEIN | K7: NEIN
A8: Dieter Diem | B8: ='Firma A'!C17 -> 0 | C8: ='Firma B'!C17 -> 0 | D8: ='Firma C'!C17 -> 0 | E8: ='Firma D'!C17 -> 0 | F8: ='Firma E'!C17 -> 0 | H8: =MAX(IF(B33:F33>1,IF(ISNUMBER(B33:F33)=TRUE,B8:F8))) -> 0 | I8: =COUNTIFS(B8:F8,H8,B33:F33,"<>1",B33:F33,"<>NA") -> 0 | J8: =IF(I8>1,"JA","NEIN") -> NEIN | K8: NEIN
A9: Normal | B9: ='Firma A'!C18 -> 300000 | C9: ='Firma B'!C18 -> 300000 | D9: ='Firma C'!C18 -> 300000 | E9: ='Firma D'!C18 -> 300000 | F9: ='Firma E'!C18 -> 300000 | H9: =IF(K9=0,"Sie müssen keinen Münzwurf mehr ausführen!","Sie müssen mind. noch einen Münzwurf ausführen!") -> Sie müssen mind. noch einen Münzwurf ausführen! | K9: =IF(OR(J5="JA",J6="JA",J7="JA",J8="JA"),IF(J5=K5,IF(J6=K6,IF(J7=K7,IF(J8=K8,0,1),1),1),1),0) -> 1
A11: Zufallszahlen im 2. Jahr | B11: Firma A | C11: Firma B | D11: Firma C | E11: Firma D | F11: Firma E
A12: Albert Adam | B12: =IF(AND(B5=$H$5,$I$5>1),RAND(),"") -> 0.2713631625 | C12: =IF(AND(C5=$H$5,$I$5>1),RAND(),"") -> 0.6838856836 | D12: =IF(AND(D5=$H$5,$I$5>1),RAND(),"") -> 0.04653963177 | E12: =IF(AND(E5=$H$5,$I$5>1),RAND(),"") -> 0.3799357077 | F12: =IF(AND(F5=$H$5,$I$5>1),RAND(),"") -> 0.9259037646
A13: Bertha Binnig | B13: =IF(AND(B6=$H$6,$I$6>1,B31>1,B31<>"na"),RAND(),"") ->  | C13: =IF(AND(C6=$H$6,$I$6>1,C31>1,C31<>"na"),RAND(),"") ->  | D13: =IF(AND(D6=$H$6,$I$6>1,D31>1,D31<>"na"),RAND(),"") ->  | E13: =IF(AND(E6=$H$6,$I$6>1,E31>1,E31<>"na"),RAND(),"") ->  | F13: =IF(AND(F6=$H$6,$I$6>1,F31>1,F31<>"na"),RAND(),"") -> 
A14: Claudia Custer | B14: =IF(AND(B7=$H$7,$I$7>1,B32>1,B32<>"na"),RAND(),"") ->  | C14: =IF(AND(C7=$H$7,$I$7>1,C32>1,C32<>"na"),RAND(),"") ->  | D14: =IF(AND(D7=$H$7,$I$7>1,D32>1,D32<>"na"),RAND(),"") ->  | E14: =IF(AND(E7=$H$7,$I$7>1,E32>1,E32<>"na"),RAND(),"") ->  | F14: =IF(AND(F7=$H$7,$I$7>1,F32>1,F32<>"na"),RAND(),"") -> 
A15: Dieter Diem | B15: =IF(AND(B8=$H$8,$I$8>1,B33>1,B33<>"na"),RAND(),"") ->  | C15: =IF(AND(C8=$H$8,$I$8>1,C33>1,C33<>"na"),RAND(),"") ->  | D15: =IF(AND(D8=$H$8,$I$8>1,D33>1,D33<>"na"),RAND(),"") ->  | E15: =IF(AND(E8=$H$8,$I$8>1,E33>1,E33<>"na"),RAND(),"") ->  | F15: =IF(AND(F8=$H$8,$I$8>1,F33>1,F33<>"na"),RAND(),"") -> 
A17: Zufallszahlen im 2. Jahr | B17: Firma A | C17: Firma B | D17: Firma C | E17: Firma D | F17: Firma E
A18: Albert Adam
A19: Bertha Binnig
A20: Claudia Custer
A21: Dieter Diem
A23: Angebote* im 2. Jahr | B23: Firma A | C23: Firma B | D23: Firma C | E23: Firma D | F23: Firma E
A24: Albert Adam | B24: =IF(AND($I$5>1,B5=$H$5),B5+1*B18,B5) -> 0 | C24: =IF(AND($I$5>1,C5=$H$5),C5+1*C18,C5) -> 0 | D24: =IF(AND($I$5>1,D5=$H$5),D5+1*D18,D5) -> 0 | E24: =IF(AND($I$5>1,E5=$H$5),E5+1*E18,E5) -> 0 | F24: =IF(AND($I$5>1,F5=$H$5),F5+1*F18,F5) -> 0
A25: Bertha Binnig | B25: =IF(AND($I$6>1,B6=$H$6),B6+1*B19,B6) -> 0 | C25: =IF(AND($I$6>1,C6=$H$6),C6+1*C19,C6) -> 0 | D25: =IF(AND($I$6>1,D6=$H$6),D6+1*D19,D6) -> 0 | E25: =IF(AND($I$6>1,E6=$H$6),E6+1*E19,E6) -> 0 | F25: =IF(AND($I$6>1,F6=$H$6),F6+1*F19,F6) -> 0
A26: Claudia Custer | B26: =IF(AND($I$7>1,B7=$H$7),B7+1*B20,B7) -> 0 | C26: =IF(AND($I$7>1,C7=$H$7),C7+1*C20,C7) -> 0 | D26: =IF(AND($I$7>1,D7=$H$7),D7+1*D20,D7) -> 0 | E26: =IF(AND($I$7>1,E7=$H$7),E7+1*E20,E7) -> 0 | F26: =IF(AND($I$7>1,F7=$H$7),F7+1*F20,F7) -> 0
A27: Dieter Diem | B27: =IF(AND($I$8>1,B8=$H$8),B8+1*B21,B8) -> 0 | C27: =IF(AND($I$8>1,C8=$H$8),C8+1*C21,C8) -> 0 | D27: =IF(AND($I$8>1,D8=$H$8),D8+1*D21,D8) -> 0 | E27: =IF(AND($I$8>1,E8=$H$8),E8+1*E21,E8) -> 0 | F27: =IF(AND($I$8>1,F8=$H$8),F8+1*F21,F8) -> 0
A28: Normal | B28: =B9 -> 300000 | C28: =C9 -> 300000 | D28: =D9 -> 300000 | E28: =E9 -> 300000 | F28: =F9 -> 300000
A30: Rang im 2. Jahr | B30: Firma A | C30: Firma B | D30: Firma C | E30: Firma D | F30: Firma E
A31: Albert Adam | B31: =RANK(B24,$B$24:$F$24) -> 1 | C31: =RANK(C24,$B$24:$F$24) -> 1 | D31: =RANK(D24,$B$24:$F$24) -> 1 | E31: =RANK(E24,$B$24:$F$24) -> 1 | F31: =RANK(F24,$B$24:$F$24) -> 1
A32: Bertha Binnig | B32: =IF(AND(B$31>1,B$31<>"NA"),COUNTIFS($B$25:$F$25,">"&B25,$B$31:$F$31,">"&1)+1,"NA") -> NA | C32: =IF(AND(C$31>1,C$31<>"NA"),COUNTIFS($B$25:$F$25,">"&C25,$B$31:$F$31,">"&1)+1,"NA") -> NA | D32: =IF(AND(D$31>1,D$31<>"NA"),COUNTIFS($B$25:$F$25,">"&D25,$B$31:$F$31,">"&1)+1,"NA") -> NA | E32: =IF(AND(E$31>1,E$31<>"NA"),COUNTIFS($B$25:$F$25,">"&E25,$B$31:$F$31,">"&1)+1,"NA") -> NA | F32: =IF(AND(F$31>1,F$31<>"NA"),COUNTIFS($B$25:$F$25,">"&F25,$B$31:$F$31,">"&1)+1,"NA") -> NA
A33: Claudia Custer | B33: =IF(AND(B$32>1,B$32<>"NA"),COUNTIFS($B$26:$F$26,">"&B26,$B$32:$F$32,">"&1)+1,"NA") -> NA | C33: =IF(AND(C$32>1,C$32<>"NA"),COUNTIFS($B$26:$F$26,">"&C26,$B$32:$F$32,">"&1)+1,"NA") -> NA | D33: =IF(AND(D$32>1,D$32<>"NA"),COUNTIFS($B$26:$F$26,">"&D26,$B$32:$F$32,">"&1)+1,"NA") -> NA | E33: =IF(AND(E$32>1,E$32<>"NA"),COUNTIFS($B$26:$F$26,">"&E26,$B$32:$F$32,">"&1)+1,"NA") -> NA | F33: =IF(AND(F$32>1,F$32<>"NA"),COUNTIFS($B$26:$F$26,">"&F26,$B$32:$F$32,">"&1)+1,"NA") -> NA
A34: Dieter Diem | B34: =IF(AND(B$33>1,B$33<>"NA"),COUNTIFS($B$27:$F$27,">"&B27,$B$33:$F$33,">"&1)+1,"NA") -> NA | C34: =IF(AND(C$33>1,C$33<>"NA"),COUNTIFS($B$27:$F$27,">"&C27,$B$33:$F$33,">"&1)+1,"NA") -> NA | D34: =IF(AND(D$33>1,D$33<>"NA"),COUNTIFS($B$27:$F$27,">"&D27,$B$33:$F$33,">"&1)+1,"NA") -> NA | E34: =IF(AND(E$33>1,E$33<>"NA"),COUNTIFS($B$27:$F$27,">"&E27,$B$33:$F$33,">"&1)+1,"NA") -> NA | F34: =IF(AND(F$33>1,F$33<>"NA"),COUNTIFS($B$27:$F$27,">"&F27,$B$33:$F$33,">"&1)+1,"NA") -> NA
A35: Normal | B35: =IF(AND(B$34>1,B$34<>"NA"),COUNTIFS($B$28:$F$28,">"&B28,$B$34:$F$34,">"&1)+1,"NA") -> NA | C35: =IF(AND(C$34>1,C$34<>"NA"),COUNTIFS($B$28:$F$28,">"&C28,$B$34:$F$34,">"&1)+1,"NA") -> NA | D35: =IF(AND(D$34>1,D$34<>"NA"),COUNTIFS($B$28:$F$28,">"&D28,$B$34:$F$34,">"&1)+1,"NA") -> NA | E35: =IF(AND(E$34>1,E$34<>"NA"),COUNTIFS($B$28:$F$28,">"&E28,$B$34:$F$34,">"&1)+1,"NA") -> NA | F35: =IF(AND(F$34>1,F$34<>"NA"),COUNTIFS($B$28:$F$28,">"&F28,$B$34:$F$34,">"&1)+1,"NA") -> NA
A37: Angebote im 2. Jahr | B37: Firma A | C37: Firma B | D37: Firma C | E37: Firma D | F37: Firma E | H37: Zuweisung | I37: Firma | J37: Jahresgehalt
A38: Albert Adam | B38: =B5 -> 0 | C38: 0 | D38: 0 | E38: 0 | F38: 0 | H38: Albert Adam | I38: =INDEX($B$30:$F$30,MATCH(1,B31:F31,0)) -> Firma A | J38: =INDEX(B5:F5,MATCH(I38,$B$4:$F$4,0)) -> 0 | M38: Zurück zur Anleitung
A39: Bertha Binnig | B39: 0 | C39: 0 | D39: 0 | E39: 0 | F39: 0 | H39: Bertha Binnig | I39: =INDEX($B$30:$F$30,MATCH(1,B32:F32,0)) ->  | J39: =INDEX(B6:F6,MATCH(I39,$B$4:$F$4,0)) -> 
A40: Claudia Custer | B40: 0 | C40: 0 | D40: 0 | E40: 0 | F40: 0 | H40: Claudia Custer | I40: =INDEX($B$30:$F$30,MATCH(1,B33:F33,0)) ->  | J40: =INDEX(B7:F7,MATCH(I40,$B$4:$F$4,0)) -> 
A41: Dieter Diem | B41: =B8 -> 0 | C41: 0 | D41: 0 | E41: 0 | F41: 0 | H41: Dieter Diem | I41: =INDEX($B$30:$F$30,MATCH(1,B34:F34,0)) ->  | J41: =INDEX(B8:F8,MATCH(I41,$B$4:$F$4,0)) -> 
A42: Normal | B42: =B9 -> 300000 | C42: =C9 -> 300000 | D42: =D9 -> 300000 | E42: =E9 -> 300000 | F42: =F9 -> 300000 | H42: Normal | I42: =INDEX($B$30:$F$30,MATCH(1,B35:F35,0)) ->  | J42: =INDEX(B9:F9,MATCH(I42,$B$4:$F$4,0)) ->  | M42: Vorwärts zur Auswertung Managerlöhne

Sheet Jahr 3
A1: Spieltheorie - Spitzenverdiener
A2: Lernspiel Cheflöhne - Zuweisung Manager (3. Jahr)
A4: Angebote im 3. Jahr | B4: Firma A | C4: Firma B | D4: Firma C | E4: Firma D | F4: Firma E | H4: Maximum | I4: # Maxima | J4: Münzwurf
A5: Albert Adam | B5: ='Firma A'!G7 -> 0 | C5: ='Firma B'!G7 -> 0 | D5: ='Firma C'!G7 -> 0 | E5: ='Firma D'!G7 -> 0 | F5: ='Firma E'!G7 -> 0 | H5: =MAX(B5:F5) -> 0 | I5: =COUNTIF(B5:F5,H5) -> 5 | J5: =IF(I5>1,"JA","NEIN") -> JA | K5: NEIN
A6: Bertha Binnig | B6: ='Firma A'!G8 -> 0 | C6: ='Firma B'!G8 -> 0 | D6: ='Firma C'!G8 -> 0 | E6: ='Firma D'!G8 -> 0 | F6: ='Firma E'!G8 -> 0 | H6: =MAX(IF(B31:F31>1,IF(ISNUMBER(B31:F31)=TRUE,B6:F6))) -> 0 | I6: =COUNTIFS(B6:F6,H6,B31:F31,"<>1",B31:F31,"<>NA") -> 0 | J6: =IF(I6>1,"JA","NEIN") -> NEIN | K6: NEIN
A7: Claudia Custer | B7: ='Firma A'!G9 -> 0 | C7: ='Firma B'!G9 -> 0 | D7: ='Firma C'!G9 -> 0 | E7: ='Firma D'!G9 -> 0 | F7: ='Firma E'!G9 -> 0 | H7: =MAX(IF(B32:F32>1,IF(ISNUMBER(B32:F32)=TRUE,B7:F7))) -> 0 | I7: =COUNTIFS(B7:F7,H7,B32:F32,"<>1",B32:F32,"<>NA") -> 0 | J7: =IF(I7>1,"JA","NEIN") -> NEIN | K7: NEIN
A8: Dieter Diem | B8: ='Firma A'!G10 -> 0 | C8: ='Firma B'!G10 -> 0 | D8: ='Firma C'!G10 -> 0 | E8: ='Firma D'!G10 -> 0 | F8: ='Firma E'!G10 -> 0 | H8: =MAX(IF(B33:F33>1,IF(ISNUMBER(B33:F33)=TRUE,B8:F8))) -> 0 | I8: =COUNTIFS(B8:F8,H8,B33:F33,"<>1",B33:F33,"<>NA") -> 0 | J8: =IF(I8>1,"JA","NEIN") -> NEIN | K8: NEIN
A9: Normal | B9: ='Firma A'!G11 -> 300000 | C9: ='Firma B'!G11 -> 300000 | D9: ='Firma C'!G11 -> 300000 | E9: ='Firma D'!G11 -> 300000 | F9: ='Firma E'!G11 -> 300000 | H9: =IF(K9=0,"Sie müssen keinen Münzwurf mehr ausführen!","Sie müssen mind. noch einen Münzwurf ausführen!") -> Sie müssen mind. noch einen Münzwurf ausführen! | K9: =IF(OR(J5="JA",J6="JA",J7="JA",J8="JA"),IF(J5=K5,IF(J6=K6,IF(J7=K7,IF(J8=K8,0,1),1),1),1),0) -> 1
A11: Zufallszahlen im 3. Jahr | B11: Firma A | C11: Firma B | D11: Firma C | E11: Firma D | F11: Firma E
A12: Albert Adam | B12: =IF(AND(B5=$H$5,$I$5>1),RAND(),"") -> 0.4428969376 | C12: =IF(AND(C5=$H$5,$I$5>1),RAND(),"") -> 0.4602480828 | D12: =IF(AND(D5=$H$5,$I$5>1),RAND(),"") -> 0.6201040369 | E12: =IF(AND(E5=$H$5,$I$5>1),RAND(),"") -> 0.2565288725 | F12: =IF(AND(F5=$H$5,$I$5>1),RAND(),"") -> 0.6594354191
A13: Bertha Binnig | B13: =IF(AND(B6=$H$6,$I$6>1,B31>1,B31<>"na"),RAND(),"") ->  | C13: =IF(AND(C6=$H$6,$I$6>1,C31>1,C31<>"na"),RAND(),"") ->  | D13: =IF(AND(D6=$H$6,$I$6>1,D31>1,D31<>"na"),RAND(),"") ->  | E13: =IF(AND(E6=$H$6,$I$6>1,E31>1,E31<>"na"),RAND(),"") ->  | F13: =IF(AND(F6=$H$6,$I$6>1,F31>1,F31<>"na"),RAND(),"") -> 
A14: Claudia Custer | B14: =IF(AND(B7=$H$7,$I$7>1,B32>1,B32<>"na"),RAND(),"") ->  | C14: =IF(AND(C7=$H$7,$I$7>1,C32>1,C32<>"na"),RAND(),"") ->  | D14: =IF(AND(D7=$H$7,$I$7>1,D32>1,D32<>"na"),RAND(),"") ->  | E14: =IF(AND(E7=$H$7,$I$7>1,E32>1,E32<>"na"),RAND(),"") ->  | F14: =IF(AND(F7=$H$7,$I$7>1,F32>1,F32<>"na"),RAND(),"") -> 
A15: Dieter Diem | B15: =IF(AND(B8=$H$8,$I$8>1,B33>1,B33<>"na"),RAND(),"") ->  | C15: =IF(AND(C8=$H$8,$I$8>1,C33>1,C33<>"na"),RAND(),"") ->  | D15: =IF(AND(D8=$H$8,$I$8>1,D33>1,D33<>"na"),RAND(),"") ->  | E15: =IF(AND(E8=$H$8,$I$8>1,E33>1,E33<>"na"),RAND(),"") ->  | F15: =IF(AND(F8=$H$8,$I$8>1,F33>1,F33<>"na"),RAND(),"") -> 
A17: Zufallszahlen im 3. Jahr | B17: Firma A | C17: Firma B | D17: Firma C | E17: Firma D | F17: Firma E
A18: Albert Adam
A19: Bertha Binnig
A20: Claudia Custer
A21: Dieter Diem
A23: Angebote* im 3. Jahr | B23: Firma A | C23: Firma B | D23: Firma C | E23: Firma D | F23: Firma E
A24: Albert Adam | B24: =IF(AND($I$5>1,B5=$H$5),B5+1*B18,B5) -> 0 | C24: =IF(AND($I$5>1,C5=$H$5),C5+1*C18,C5) -> 0 | D24: =IF(AND($I$5>1,D5=$H$5),D5+1*D18,D5) -> 0 | E24: =IF(AND($I$5>1,E5=$H$5),E5+1*E18,E5) -> 0 | F24: =IF(AND($I$5>1,F5=$H$5),F5+1*F18,F5) -> 0
A25: Bertha Binnig | B25: =IF(AND($I$6>1,B6=$H$6),B6+1*B19,B6) -> 0 | C25: =IF(AND($I$6>1,C6=$H$6),C6+1*C19,C6) -> 0 | D25: =IF(AND($I$6>1,D6=$H$6),D6+1*D19,D6) -> 0 | E25: =IF(AND($I$6>1,E6=$H$6),E6+1*E19,E6) -> 0 | F25: =IF(AND($I$6>1,F6=$H$6),F6+1*F19,F6) -> 0
A26: Claudia Custer | B26: =IF(AND($I$7>1,B7=$H$7),B7+1*B20,B7) -> 0 | C26: =IF(AND($I$7>1,C7=$H$7),C7+1*C20,C7) -> 0 | D26: =IF(AND($I$7>1,D7=$H$7),D7+1*D20,D7) -> 0 | E26: =IF(AND($I$7>1,E7=$H$7),E7+1*E20,E7) -> 0 | F26: =IF(AND($I$7>1,F7=$H$7),F7+1*F20,F7) -> 0
A27: Dieter Diem | B27: =IF(AND($I$8>1,B8=$H$8),B8+1*B21,B8) -> 0 | C27: =IF(AND($I$8>1,C8=$H$8),C8+1*C21,C8) -> 0 | D27: =IF(AND($I$8>1,D8=$H$8),D8+1*D21,D8) -> 0 | E27: =IF(AND($I$8>1,E8=$H$8),E8+1*E21,E8) -> 0 | F27: =IF(AND($I$8>1,F8=$H$8),F8+1*F21,F8) -> 0
A28: Normal | B28: =B9 -> 300000 | C28: =C9 -> 300000 | D28: =D9 -> 300000 | E28: =E9 -> 300000 | F28: =F9 -> 300000
A30: Rang im 3. Jahr | B30: Firma A | C30: Firma B | D30: Firma C | E30: Firma D | F30: Firma E
A31: Albert Adam | B31: =RANK(B24,$B$24:$F$24) -> 1 | C31: =RANK(C24,$B$24:$F$24) -> 1 | D31: =RANK(D24,$B$24:$F$24) -> 1 | E31: =RANK(E24,$B$24:$F$24) -> 1 | F31: =RANK(F24,$B$24:$F$24) -> 1
A32: Bertha Binnig | B32: =IF(AND(B$31>1,B$31<>"NA"),COUNTIFS($B$25:$F$25,">"&B25,$B$31:$F$31,">"&1)+1,"NA") -> NA | C32: =IF(AND(C$31>1,C$31<>"NA"),COUNTIFS($B$25:$F$25,">"&C25,$B$31:$F$31,">"&1)+1,"NA") -> NA | D32: =IF(AND(D$31>1,D$31<>"NA"),COUNTIFS($B$25:$F$25,">"&D25,$B$31:$F$31,">"&1)+1,"NA") -> NA | E32: =IF(AND(E$31>1,E$31<>"NA"),COUNTIFS($B$25:$F$25,">"&E25,$B$31:$F$31,">"&1)+1,"NA") -> NA | F32: =IF(AND(F$31>1,F$31<>"NA"),COUNTIFS($B$25:$F$25,">"&F25,$B$31:$F$31,">"&1)+1,"NA") -> NA
A33: Claudia Custer | B33: =IF(AND(B$32>1,B$32<>"NA"),COUNTIFS($B$26:$F$26,">"&B26,$B$32:$F$32,">"&1)+1,"NA") -> NA | C33: =IF(AND(C$32>1,C$32<>"NA"),COUNTIFS($B$26:$F$26,">"&C26,$B$32:$F$32,">"&1)+1,"NA") -> NA | D33: =IF(AND(D$32>1,D$32<>"NA"),COUNTIFS($B$26:$F$26,">"&D26,$B$32:$F$32,">"&1)+1,"NA") -> NA | E33: =IF(AND(E$32>1,E$32<>"NA"),COUNTIFS($B$26:$F$26,">"&E26,$B$32:$F$32,">"&1)+1,"NA") -> NA | F33: =IF(AND(F$32>1,F$32<>"NA"),COUNTIFS($B$26:$F$26,">"&F26,$B$32:$F$32,">"&1)+1,"NA") -> NA
A34: Dieter Diem | B34: =IF(AND(B$33>1,B$33<>"NA"),COUNTIFS($B$27:$F$27,">"&B27,$B$33:$F$33,">"&1)+1,"NA") -> NA | C34: =IF(AND(C$33>1,C$33<>"NA"),COUNTIFS($B$27:$F$27,">"&C27,$B$33:$F$33,">"&1)+1,"NA") -> NA | D34: =IF(AND(D$33>1,D$33<>"NA"),COUNTIFS($B$27:$F$27,">"&D27,$B$33:$F$33,">"&1)+1,"NA") -> NA | E34: =IF(AND(E$33>1,E$33<>"NA"),COUNTIFS($B$27:$F$27,">"&E27,$B$33:$F$33,">"&1)+1,"NA") -> NA | F34: =IF(AND(F$33>1,F$33<>"NA"),COUNTIFS($B$27:$F$27,">"&F27,$B$33:$F$33,">"&1)+1,"NA") -> NA
A35: Normal | B35: =IF(AND(B$34>1,B$34<>"NA"),COUNTIFS($B$28:$F$28,">"&B28,$B$34:$F$34,">"&1)+1,"NA") -> NA | C35: =IF(AND(C$34>1,C$34<>"NA"),COUNTIFS($B$28:$F$28,">"&C28,$B$34:$F$34,">"&1)+1,"NA") -> NA | D35: =IF(AND(D$34>1,D$34<>"NA"),COUNTIFS($B$28:$F$28,">"&D28,$B$34:$F$34,">"&1)+1,"NA") -> NA | E35: =IF(AND(E$34>1,E$34<>"NA"),COUNTIFS($B$28:$F$28,">"&E28,$B$34:$F$34,">"&1)+1,"NA") -> NA | F35: =IF(AND(F$34>1,F$34<>"NA"),COUNTIFS($B$28:$F$28,">"&F28,$B$34:$F$34,">"&1)+1,"NA") -> NA
A37: Angebote im 3. Jahr | B37: Firma A | C37: Firma B | D37: Firma C | E37: Firma D | F37: Firma E | H37: Zuweisung | I37: Firma | J37: Jahresgehalt
A38: Albert Adam | B38: =B5 -> 0 | C38: 0 | D38: 0 | E38: 0 | F38: 0 | H38: Albert Adam | I38: =INDEX($B$30:$F$30,MATCH(1,B31:F31,0)) -> Firma A | J38: =INDEX(B5:F5,MATCH(I38,$B$4:$F$4,0)) -> 0 | M38: Zurück zur Anleitung
A39: Bertha Binnig | B39: 0 | C39: 0 | D39: 0 | E39: 0 | F39: 0 | H39: Bertha Binnig | I39: =INDEX($B$30:$F$30,MATCH(1,B32:F32,0)) ->  | J39: =INDEX(B6:F6,MATCH(I39,$B$4:$F$4,0)) -> 
A40: Claudia Custer | B40: 0 | C40: 0 | D40: 0 | E40: 0 | F40: 0 | H40: Claudia Custer | I40: =INDEX($B$30:$F$30,MATCH(1,B33:F33,0)) ->  | J40: =INDEX(B7:F7,MATCH(I40,$B$4:$F$4,0)) -> 
A41: Dieter Diem | B41: =B8 -> 0 | C41: 0 | D41: 0 | E41: 0 | F41: 0 | H41: Dieter Diem | I41: =INDEX($B$30:$F$30,MATCH(1,B34:F34,0)) ->  | J41: =INDEX(B8:F8,MATCH(I41,$B$4:$F$4,0)) -> 
A42: Normal | B42: =B9 -> 300000 | C42: =C9 -> 300000 | D42: =D9 -> 300000 | E42: =E9 -> 300000 | F42: =F9 -> 300000 | H42: Normal | I42: =INDEX($B$30:$F$30,MATCH(1,B35:F35,0)) ->  | J42: =INDEX(B9:F9,MATCH(I42,$B$4:$F$4,0)) ->  | M42: Vorwärts zur Auswertung Managerlöhne

Sheet Jahr 4
A1: Spieltheorie - Spitzenverdiener
A2: Lernspiel Cheflöhne - Zuweisung Manager (4. Jahr)
A4: Angebote im 4. Jahr | B4: Firma A | C4: Firma B | D4: Firma C | E4: Firma D | F4: Firma E | H4: Maximum | I4: # Maxima | J4: Münzwurf
A5: Albert Adam | B5: ='Firma A'!G14 -> 0 | C5: ='Firma B'!G14 -> 0 | D5: ='Firma C'!G14 -> 0 | E5: ='Firma D'!G14 -> 0 | F5: ='Firma E'!G14 -> 0 | H5: =MAX(B5:F5) -> 0 | I5: =COUNTIF(B5:F5,H5) -> 5 | J5: =IF(I5>1,"JA","NEIN") -> JA | K5: NEIN
A6: Bertha Binnig | B6: ='Firma A'!G15 -> 0 | C6: ='Firma B'!G15 -> 0 | D6: ='Firma C'!G15 -> 0 | E6: ='Firma D'!G15 -> 0 | F6: ='Firma E'!G15 -> 0 | H6: =MAX(IF(B31:F31>1,IF(ISNUMBER(B31:F31)=TRUE,B6:F6))) -> 0 | I6: =COUNTIFS(B6:F6,H6,B31:F31,"<>1",B31:F31,"<>NA") -> 0 | J6: =IF(I6>1,"JA","NEIN") -> NEIN | K6: NEIN
A7: Claudia Custer | B7: ='Firma A'!G16 -> 0 | C7: ='Firma B'!G16 -> 0 | D7: ='Firma C'!G16 -> 0 | E7: ='Firma D'!G16 -> 0 | F7: ='Firma E'!G16 -> 0 | H7: =MAX(IF(B32:F32>1,IF(ISNUMBER(B32:F32)=TRUE,B7:F7))) -> 0 | I7: =COUNTIFS(B7:F7,H7,B32:F32,"<>1",B32:F32,"<>NA") -> 0 | J7: =IF(I7>1,"JA","NEIN") -> NEIN | K7: NEIN
A8: Dieter Diem | B8: ='Firma A'!G17 -> 0 | C8: ='Firma B'!G17 -> 0 | D8: ='Firma C'!G17 -> 0 | E8: ='Firma D'!G17 -> 0 | F8: ='Firma E'!G17 -> 0 | H8: =MAX(IF(B33:F33>1,IF(ISNUMBER(B33:F33)=TRUE,B8:F8))) -> 0 | I8: =COUNTIFS(B8:F8,H8,B33:F33,"<>1",B33:F33,"<>NA") -> 0 | J8: =IF(I8>1,"JA","NEIN") -> NEIN | K8: NEIN
A9: Normal | B9: ='Firma A'!G18 -> 300000 | C9: ='Firma B'!G18 -> 300000 | D9: ='Firma C'!G18 -> 300000 | E9: ='Firma D'!G18 -> 300000 | F9: ='Firma E'!G18 -> 300000 | H9: =IF(K9=0,"Sie müssen keinen Münzwurf mehr ausführen!","Sie müssen mind. noch einen Münzwurf ausführen!") -> Sie müssen mind. noch einen Münzwurf ausführen! | K9: =IF(OR(J5="JA",J6="JA",J7="JA",J8="JA"),IF(J5=K5,IF(J6=K6,IF(J7=K7,IF(J8=K8,0,1),1),1),1),0) -> 1
A11: Zufallszahlen im 4. Jahr | B11: Firma A | C11: Firma B | D11: Firma C | E11: Firma D | F11: Firma E
A12: Albert Adam | B12: =IF(AND(B5=$H$5,$I$5>1),RAND(),"") -> 0.7505446711 | C12: =IF(AND(C5=$H$5,$I$5>1),RAND(),"") -> 0.4899444414 | D12: =IF(AND(D5=$H$5,$I$5>1),RAND(),"") -> 0.401748928 | E12: =IF(AND(E5=$H$5,$I$5>1),RAND(),"") -> 0.07908911579 | F12: =IF(AND(F5=$H$5,$I$5>1),RAND(),"") -> 0.5616310682
A13: Bertha Binnig | B13: =IF(AND(B6=$H$6,$I$6>1,B31>1,B31<>"na"),RAND(),"") ->  | C13: =IF(AND(C6=$H$6,$I$6>1,C31>1,C31<>"na"),RAND(),"") ->  | D13: =IF(AND(D6=$H$6,$I$6>1,D31>1,D31<>"na"),RAND(),"") ->  | E13: =IF(AND(E6=$H$6,$I$6>1,E31>1,E31<>"na"),RAND(),"") ->  | F13: =IF(AND(F6=$H$6,$I$6>1,F31>1,F31<>"na"),RAND(),"") -> 
A14: Claudia Custer | B14: =IF(AND(B7=$H$7,$I$7>1,B32>1,B32<>"na"),RAND(),"") ->  | C14: =IF(AND(C7=$H$7,$I$7>1,C32>1,C32<>"na"),RAND(),"") ->  | D14: =IF(AND(D7=$H$7,$I$7>1,D32>1,D32<>"na"),RAND(),"") ->  | E14: =IF(AND(E7=$H$7,$I$7>1,E32>1,E32<>"na"),RAND(),"") ->  | F14: =IF(AND(F7=$H$7,$I$7>1,F32>1,F32<>"na"),RAND(),"") -> 
A15: Dieter Diem | B15: =IF(AND(B8=$H$8,$I$8>1,B33>1,B33<>"na"),RAND(),"") ->  | C15: =IF(AND(C8=$H$8,$I$8>1,C33>1,C33<>"na"),RAND(),"") ->  | D15: =IF(AND(D8=$H$8,$I$8>1,D33>1,D33<>"na"),RAND(),"") ->  | E15: =IF(AND(E8=$H$8,$I$8>1,E33>1,E33<>"na"),RAND(),"") ->  | F15: =IF(AND(F8=$H$8,$I$8>1,F33>1,F33<>"na"),RAND(),"") -> 
A17: Zufallszahlen im 4. Jahr | B17: Firma A | C17: Firma B | D17: Firma C | E17: Firma D | F17: Firma E
A18: Albert Adam
A19: Bertha Binnig
A20: Claudia Custer
A21: Dieter Diem
A23: Angebote* im 4. Jahr | B23: Firma A | C23: Firma B | D23: Firma C | E23: Firma D | F23: Firma E
A24: Albert Adam | B24: =IF(AND($I$5>1,B5=$H$5),B5+1*B18,B5) -> 0 | C24: =IF(AND($I$5>1,C5=$H$5),C5+1*C18,C5) -> 0 | D24: =IF(AND($I$5>1,D5=$H$5),D5+1*D18,D5) -> 0 | E24: =IF(AND($I$5>1,E5=$H$5),E5+1*E18,E5) -> 0 | F24: =IF(AND($I$5>1,F5=$H$5),F5+1*F18,F5) -> 0
A25: Bertha Binnig | B25: =IF(AND($I$6>1,B6=$H$6),B6+1*B19,B6) -> 0 | C25: =IF(AND($I$6>1,C6=$H$6),C6+1*C19,C6) -> 0 | D25: =IF(AND($I$6>1,D6=$H$6),D6+1*D19,D6) -> 0 | E25: =IF(AND($I$6>1,E6=$H$6),E6+1*E19,E6) -> 0 | F25: =IF(AND($I$6>1,F6=$H$6),F6+1*F19,F6) -> 0
A26: Claudia Custer | B26: =IF(AND($I$7>1,B7=$H$7),B7+1*B20,B7) -> 0 | C26: =IF(AND($I$7>1,C7=$H$7),C7+1*C20,C7) -> 0 | D26: =IF(AND($I$7>1,D7=$H$7),D7+1*D20,D7) -> 0 | E26: =IF(AND($I$7>1,E7=$H$7),E7+1*E20,E7) -> 0 | F26: =IF(AND($I$7>1,F7=$H$7),F7+1*F20,F7) -> 0
A27: Dieter Diem | B27: =IF(AND($I$8>1,B8=$H$8),B8+1*B21,B8) -> 0 | C27: =IF(AND($I$8>1,C8=$H$8),C8+1*C21,C8) -> 0 | D27: =IF(AND($I$8>1,D8=$H$8),D8+1*D21,D8) -> 0 | E27: =IF(AND($I$8>1,E8=$H$8),E8+1*E21,E8) -> 0 | F27: =IF(AND($I$8>1,F8=$H$8),F8+1*F21,F8) -> 0
A28: Normal | B28: =B9 -> 300000 | C28: =C9 -> 300000 | D28: =D9 -> 300000 | E28: =E9 -> 300000 | F28: =F9 -> 300000
A30: Rang im 4. Jahr | B30: Firma A | C30: Firma B | D30: Firma C | E30: Firma D | F30: Firma E
A31: Albert Adam | B31: =RANK(B24,$B$24:$F$24) -> 1 | C31: =RANK(C24,$B$24:$F$24) -> 1 | D31: =RANK(D24,$B$24:$F$24) -> 1 | E31: =RANK(E24,$B$24:$F$24) -> 1 | F31: =RANK(F24,$B$24:$F$24) -> 1
A32: Bertha Binnig | B32: =IF(AND(B$31>1,B$31<>"NA"),COUNTIFS($B$25:$F$25,">"&B25,$B$31:$F$31,">"&1)+1,"NA") -> NA | C32: =IF(AND(C$31>1,C$31<>"NA"),COUNTIFS($B$25:$F$25,">"&C25,$B$31:$F$31,">"&1)+1,"NA") -> NA | D32: =IF(AND(D$31>1,D$31<>"NA"),COUNTIFS($B$25:$F$25,">"&D25,$B$31:$F$31,">"&1)+1,"NA") -> NA | E32: =IF(AND(E$31>1,E$31<>"NA"),COUNTIFS($B$25:$F$25,">"&E25,$B$31:$F$31,">"&1)+1,"NA") -> NA | F32: =IF(AND(F$31>1,F$31<>"NA"),COUNTIFS($B$25:$F$25,">"&F25,$B$31:$F$31,">"&1)+1,"NA") -> NA
A33: Claudia Custer | B33: =IF(AND(B$32>1,B$32<>"NA"),COUNTIFS($B$26:$F$26,">"&B26,$B$32:$F$32,">"&1)+1,"NA") -> NA | C33: =IF(AND(C$32>1,C$32<>"NA"),COUNTIFS($B$26:$F$26,">"&C26,$B$32:$F$32,">"&1)+1,"NA") -> NA | D33: =IF(AND(D$32>1,D$32<>"NA"),COUNTIFS($B$26:$F$26,">"&D26,$B$32:$F$32,">"&1)+1,"NA") -> NA | E33: =IF(AND(E$32>1,E$32<>"NA"),COUNTIFS($B$26:$F$26,">"&E26,$B$32:$F$32,">"&1)+1,"NA") -> NA | F33: =IF(AND(F$32>1,F$32<>"NA"),COUNTIFS($B$26:$F$26,">"&F26,$B$32:$F$32,">"&1)+1,"NA") -> NA
A34: Dieter Diem | B34: =IF(AND(B$33>1,B$33<>"NA"),COUNTIFS($B$27:$F$27,">"&B27,$B$33:$F$33,">"&1)+1,"NA") -> NA | C34: =IF(AND(C$33>1,C$33<>"NA"),COUNTIFS($B$27:$F$27,">"&C27,$B$33:$F$33,">"&1)+1,"NA") -> NA | D34: =IF(AND(D$33>1,D$33<>"NA"),COUNTIFS($B$27:$F$27,">"&D27,$B$33:$F$33,">"&1)+1,"NA") -> NA | E34: =IF(AND(E$33>1,E$33<>"NA"),COUNTIFS($B$27:$F$27,">"&E27,$B$33:$F$33,">"&1)+1,"NA") -> NA | F34: =IF(AND(F$33>1,F$33<>"NA"),COUNTIFS($B$27:$F$27,">"&F27,$B$33:$F$33,">"&1)+1,"NA") -> NA
A35: Normal | B35: =IF(AND(B$34>1,B$34<>"NA"),COUNTIFS($B$28:$F$28,">"&B28,$B$34:$F$34,">"&1)+1,"NA") -> NA | C35: =IF(AND(C$34>1,C$34<>"NA"),COUNTIFS($B$28:$F$28,">"&C28,$B$34:$F$34,">"&1)+1,"NA") -> NA | D35: =IF(AND(D$34>1,D$34<>"NA"),COUNTIFS($B$28:$F$28,">"&D28,$B$34:$F$34,">"&1)+1,"NA") -> NA | E35: =IF(AND(E$34>1,E$34<>"NA"),COUNTIFS($B$28:$F$28,">"&E28,$B$34:$F$34,">"&1)+1,"NA") -> NA | F35: =IF(AND(F$34>1,F$34<>"NA"),COUNTIFS($B$28:$F$28,">"&F28,$B$34:$F$34,">"&1)+1,"NA") -> NA
A37: Angebote im 4. Jahr | B37: Firma A | C37: Firma B | D37: Firma C | E37: Firma D | F37: Firma E | H37: Zuweisung | I37: Firma | J37: Jahresgehalt
A38: Albert Adam | B38: =B5 -> 0 | C38: 0 | D38: 0 | E38: 0 | F38: 0 | H38: Albert Adam | I38: =INDEX($B$30:$F$30,MATCH(1,B31:F31,0)) -> Firma A | J38: =INDEX(B5:F5,MATCH(I38,$B$4:$F$4,0)) -> 0 | M38: Zurück zur Anleitung
A39: Bertha Binnig | B39: 0 | C39: 0 | D39: 0 | E39: 0 | F39: 0 | H39: Bertha Binnig | I39: =INDEX($B$30:$F$30,MATCH(1,B32:F32,0)) ->  | J39: =INDEX(B6:F6,MATCH(I39,$B$4:$F$4,0)) -> 
A40: Claudia Custer | B40: 0 | C40: 0 | D40: 0 | E40: 0 | F40: 0 | H40: Claudia Custer | I40: =INDEX($B$30:$F$30,MATCH(1,B33:F33,0)) ->  | J40: =INDEX(B7:F7,MATCH(I40,$B$4:$F$4,0)) -> 
A41: Dieter Diem | B41: =B8 -> 0 | C41: 0 | D41: 0 | E41: 0 | F41: 0 | H41: Dieter Diem | I41: =INDEX($B$30:$F$30,MATCH(1,B34:F34,0)) ->  | J41: =INDEX(B8:F8,MATCH(I41,$B$4:$F$4,0)) -> 
A42: Normal | B42: =B9 -> 300000 | C42: =C9 -> 300000 | D42: =D9 -> 300000 | E42: =E9 -> 300000 | F42: =F9 -> 300000 | H42: Normal | I42: =INDEX($B$30:$F$30,MATCH(1,B35:F35,0)) ->  | J42: =INDEX(B9:F9,MATCH(I42,$B$4:$F$4,0)) ->  | M42: Vorwärts zur Auswertung Managerlöhne

Sheet Auswertung Managerlöhne
A1: Spieltheorie - Spitzenverdiener
A2: Lernspiel Cheflöhne - Auswertung Jahreslohn Manager
A4: CEO | B4: 1. Jahr | C4: 2. Jahr | D4: 3. Jahr | E4: 4. Jahr
A5: Albert Adam | B5: =INDEX('Jahr 1'!$J$38:$J$42,MATCH(A5,'Jahr 1'!$H$38:$H$42,0)) -> 0 | C5: =INDEX('Jahr 2'!$J$38:$J$42,MATCH(A5,'Jahr 2'!$H$38:$H$42,0)) -> 0 | D5: =INDEX('Jahr 3'!$J$38:$J$42,MATCH(A5,'Jahr 3'!$H$38:$H$42,0)) -> 0 | E5: =INDEX('Jahr 4'!$J$38:$J$42,MATCH(A5,'Jahr 4'!$H$38:$H$42,0)) -> 0
A6: Bertha Binnig | B6: =INDEX('Jahr 1'!$J$38:$J$42,MATCH(A6,'Jahr 1'!$H$38:$H$42,0)) ->  | C6: =INDEX('Jahr 2'!$J$38:$J$42,MATCH(A6,'Jahr 2'!$H$38:$H$42,0)) ->  | D6: =INDEX('Jahr 3'!$J$38:$J$42,MATCH(A6,'Jahr 3'!$H$38:$H$42,0)) ->  | E6: =INDEX('Jahr 4'!$J$38:$J$42,MATCH(A6,'Jahr 4'!$H$38:$H$42,0)) -> 
A7: Claudia Custer | B7: =INDEX('Jahr 1'!$J$38:$J$42,MATCH(A7,'Jahr 1'!$H$38:$H$42,0)) ->  | C7: =INDEX('Jahr 2'!$J$38:$J$42,MATCH(A7,'Jahr 2'!$H$38:$H$42,0)) ->  | D7: =INDEX('Jahr 3'!$J$38:$J$42,MATCH(A7,'Jahr 3'!$H$38:$H$42,0)) ->  | E7: =INDEX('Jahr 4'!$J$38:$J$42,MATCH(A7,'Jahr 4'!$H$38:$H$42,0)) -> 
A8: Dieter Diem | B8: =INDEX('Jahr 1'!$J$38:$J$42,MATCH(A8,'Jahr 1'!$H$38:$H$42,0)) ->  | C8: =INDEX('Jahr 2'!$J$38:$J$42,MATCH(A8,'Jahr 2'!$H$38:$H$42,0)) ->  | D8: =INDEX('Jahr 3'!$J$38:$J$42,MATCH(A8,'Jahr 3'!$H$38:$H$42,0)) ->  | E8: =INDEX('Jahr 4'!$J$38:$J$42,MATCH(A8,'Jahr 4'!$H$38:$H$42,0)) -> 
A9: Normal | B9: =INDEX('Jahr 1'!$J$38:$J$42,MATCH(A9,'Jahr 1'!$H$38:$H$42,0)) ->  | C9: =INDEX('Jahr 2'!$J$38:$J$42,MATCH(A9,'Jahr 2'!$H$38:$H$42,0)) ->  | D9: =INDEX('Jahr 3'!$J$38:$J$42,MATCH(A9,'Jahr 3'!$H$38:$H$42,0)) ->  | E9: =INDEX('Jahr 4'!$J$38:$J$42,MATCH(A9,'Jahr 4'!$H$38:$H$42,0)) ->  | H9: Vorwärts zur Firmenauswertung

Sheet Auswertung Firmen
A1: Spieltheorie - Spitzenverdiener
A2: Lernspiel Cheflöhne - Auswertung Firmen
B4: Siehe Grunddaten | C4: Siehe entspr. Jahr | D4: Siehe Grunddaten | E4: Kapitalrendite (brutto, %) * Kapitalisierung | F4: Siehe entspr. Jahr | G4: Gewinn (brutto, CHF) - Jahresgehalt (CHF) | H4: Gewinn (netto, CHF) / Kapitalisierung | K4: Zurück zu Firma A
K6: Vorwärts zu den Grafiken
A8: 1. Jahr | B8: Kapitalisierung | C8: CEO | D8: Kapitalrendite brutto, in % | E8: Gewinn brutto, in CHF | F8: Jahresgehalt, in CHF | G8: Gewinn netto, in CHF | H8: Kapitalrendite netto, in %
A9: Firma A | B9: =INDEX(Grunddaten!$B$14:$B$18,MATCH(A9,Grunddaten!$A$14:$A$18,0)) -> 5000000 | C9: =INDEX('Jahr 1'!$H$38:$H$42,MATCH('Auswertung Firmen'!A9,'Jahr 1'!$I$38:$I$42,0)) -> Albert Adam | D9: =INDEX(Grunddaten!$B$6:$B$10,MATCH(C9,Grunddaten!$A$6:$A$10,0)) -> 0.14 | E9: =D9*B9 -> 700000 | F9: =INDEX('Jahr 1'!$J$38:$J$42,MATCH('Auswertung Firmen'!A9,'Jahr 1'!$I$38:$I$42,0)) -> 0 | G9: =E9-F9 -> 700000 | H9: =G9/B9 -> 0.14
A10: Firma B | B10: =INDEX(Grunddaten!$B$14:$B$18,MATCH(A10,Grunddaten!$A$14:$A$18,0)) -> 10000000 | C10: =INDEX('Jahr 1'!$H$38:$H$42,MATCH('Auswertung Firmen'!A10,'Jahr 1'!$I$38:$I$42,0)) ->  | D10: =INDEX(Grunddaten!$B$6:$B$10,MATCH(C10,Grunddaten!$A$6:$A$10,0)) ->  | E10: =D10*B10 ->  | F10: =INDEX('Jahr 1'!$J$38:$J$42,MATCH('Auswertung Firmen'!A10,'Jahr 1'!$I$38:$I$42,0)) ->  | G10: =E10-F10 ->  | H10: =G10/B10 -> 
A11: Firma C | B11: =INDEX(Grunddaten!$B$14:$B$18,MATCH(A11,Grunddaten!$A$14:$A$18,0)) -> 30000000 | C11: =INDEX('Jahr 1'!$H$38:$H$42,MATCH('Auswertung Firmen'!A11,'Jahr 1'!$I$38:$I$42,0)) ->  | D11: =INDEX(Grunddaten!$B$6:$B$10,MATCH(C11,Grunddaten!$A$6:$A$10,0)) ->  | E11: =D11*B11 ->  | F11: =INDEX('Jahr 1'!$J$38:$J$42,MATCH('Auswertung Firmen'!A11,'Jahr 1'!$I$38:$I$42,0)) ->  | G11: =E11-F11 ->  | H11: =G11/B11 -> 
A12: Firma D | B12: =INDEX(Grunddaten!$B$14:$B$18,MATCH(A12,Grunddaten!$A$14:$A$18,0)) -> 400000000 | C12: =INDEX('Jahr 1'!$H$38:$H$42,MATCH('Auswertung Firmen'!A12,'Jahr 1'!$I$38:$I$42,0)) ->  | D12: =INDEX(Grunddaten!$B$6:$B$10,MATCH(C12,Grunddaten!$A$6:$A$10,0)) ->  | E12: =D12*B12 ->  | F12: =INDEX('Jahr 1'!$J$38:$J$42,MATCH('Auswertung Firmen'!A12,'Jahr 1'!$I$38:$I$42,0)) ->  | G12: =E12-F12 ->  | H12: =G12/B12 -> 
A13: Firma E | B13: =INDEX(Grunddaten!$B$14:$B$18,MATCH(A13,Grunddaten!$A$14:$A$18,0)) -> 7000000000 | C13: =INDEX('Jahr 1'!$H$38:$H$42,MATCH('Auswertung Firmen'!A13,'Jahr 1'!$I$38:$I$42,0)) ->  | D13: =INDEX(Grunddaten!$B$6:$B$10,MATCH(C13,Grunddaten!$A$6:$A$10,0)) ->  | E13: =D13*B13 ->  | F13: =INDEX('Jahr 1'!$J$38:$J$42,MATCH('Auswertung Firmen'!A13,'Jahr 1'!$I$38:$I$42,0)) ->  | G13: =E13-F13 ->  | H13: =G13/B13 ->  | K13: Zurück zur Zuweisung Manager Jahr 1
A15: 2. Jahr | B15: Kapitalisierung | C15: CEO | D15: Kapitalrendite brutto, in % | E15: Gewinn brutto, in CHF | F15: Jahresgehalt, in CHF | G15: Gewinn netto, in CHF | H15: Kapitalrendite netto, in %
A16: Firma A | B16: =INDEX(Grunddaten!$B$14:$B$18,MATCH(A16,Grunddaten!$A$14:$A$18,0)) -> 5000000 | C16: =INDEX('Jahr 2'!$H$38:$H$42,MATCH('Auswertung Firmen'!A16,'Jahr 2'!$I$38:$I$42,0)) -> Albert Adam | D16: =INDEX(Grunddaten!$B$6:$B$10,MATCH(C16,Grunddaten!$A$6:$A$10,0)) -> 0.14 | E16: =D16*B16 -> 700000 | F16: =INDEX('Jahr 2'!$J$38:$J$42,MATCH('Auswertung Firmen'!A16,'Jahr 2'!$I$38:$I$42,0)) -> 0 | G16: =E16-F16 -> 700000 | H16: =G16/B16 -> 0.14
A17: Firma B | B17: =INDEX(Grunddaten!$B$14:$B$18,MATCH(A17,Grunddaten!$A$14:$A$18,0)) -> 10000000 | C17: =INDEX('Jahr 2'!$H$38:$H$42,MATCH('Auswertung Firmen'!A17,'Jahr 2'!$I$38:$I$42,0)) ->  | D17: =INDEX(Grunddaten!$B$6:$B$10,MATCH(C17,Grunddaten!$A$6:$A$10,0)) ->  | E17: =D17*B17 ->  | F17: =INDEX('Jahr 2'!$J$38:$J$42,MATCH('Auswertung Firmen'!A17,'Jahr 2'!$I$38:$I$42,0)) ->  | G17: =E17-F17 ->  | H17: =G17/B17 -> 
A18: Firma C | B18: =INDEX(Grunddaten!$B$14:$B$18,MATCH(A18,Grunddaten!$A$14:$A$18,0)) -> 30000000 | C18: =INDEX('Jahr 2'!$H$38:$H$42,MATCH('Auswertung Firmen'!A18,'Jahr 2'!$I$38:$I$42,0)) ->  | D18: =INDEX(Grunddaten!$B$6:$B$10,MATCH(C18,Grunddaten!$A$6:$A$10,0)) ->  | E18: =D18*B18 ->  | F18: =INDEX('Jahr 2'!$J$38:$J$42,MATCH('Auswertung Firmen'!A18,'Jahr 2'!$I$38:$I$42,0)) ->  | G18: =E18-F18 ->  | H18: =G18/B18 -> 
A19: Firma D | B19: =INDEX(Grunddaten!$B$14:$B$18,MATCH(A19,Grunddaten!$A$14:$A$18,0)) -> 400000000 | C19: =INDEX('Jahr 2'!$H$38:$H$42,MATCH('Auswertung Firmen'!A19,'Jahr 2'!$I$38:$I$42,0)) ->  | D19: =INDEX(Grunddaten!$B$6:$B$10,MATCH(C19,Grunddaten!$A$6:$A$10,0)) ->  | E19: =D19*B19 ->  | F19: =INDEX('Jahr 2'!$J$38:$J$42,MATCH('Auswertung Firmen'!A19,'Jahr 2'!$I$38:$I$42,0)) ->  | G19: =E19-F19 ->  | H19: =G19/B19 -> 
A20: Firma E | B20: =INDEX(Grunddaten!$B$14:$B$18,MATCH(A20,Grunddaten!$A$14:$A$18,0)) -> 7000000000 | C20: =INDEX('Jahr 2'!$H$38:$H$42,MATCH('Auswertung Firmen'!A20,'Jahr 2'!$I$38:$I$42,0)) ->  | D20: =INDEX(Grunddaten!$B$6:$B$10,MATCH(C20,Grunddaten!$A$6:$A$10,0)) ->  | E20: =D20*B20 ->  | F20: =INDEX('Jahr 2'!$J$38:$J$42,MATCH('Auswertung Firmen'!A20,'Jahr 2'!$I$38:$I$42,0)) ->  | G20: =E20-F20 ->  | H20: =G20/B20 ->  | K20: Zurück zur Zuweisung Manager Jahr 2
A22: 3. Jahr | B22: Kapitalisierung | C22: CEO | D22: Kapitalrendite brutto, in % | E22: Gewinn brutto, in CHF | F22: Jahresgehalt, in CHF | G22: Gewinn netto, in CHF | H22: Kapitalrendite netto, in %
A23: Firma A | B23: =INDEX(Grunddaten!$B$14:$B$18,MATCH(A23,Grunddaten!$A$14:$A$18,0)) -> 5000000 | C23: =INDEX('Jahr 3'!$H$38:$H$42,MATCH('Auswertung Firmen'!A23,'Jahr 3'!$I$38:$I$42,0)) -> Albert Adam | D23: =INDEX(Grunddaten!$B$6:$B$10,MATCH(C23,Grunddaten!$A$6:$A$10,0)) -> 0.14 | E23: =D23*B23 -> 700000 | F23: =INDEX('Jahr 3'!$J$38:$J$42,MATCH('Auswertung Firmen'!A23,'Jahr 3'!$I$38:$I$42,0)) -> 0 | G23: =E23-F23 -> 700000 | H23: =G23/B23 -> 0.14
A24: Firma B | B24: =INDEX(Grunddaten!$B$14:$B$18,MATCH(A24,Grunddaten!$A$14:$A$18,0)) -> 10000000 | C24: =INDEX('Jahr 3'!$H$38:$H$42,MATCH('Auswertung Firmen'!A24,'Jahr 3'!$I$38:$I$42,0)) ->  | D24: =INDEX(Grunddaten!$B$6:$B$10,MATCH(C24,Grunddaten!$A$6:$A$10,0)) ->  | E24: =D24*B24 ->  | F24: =INDEX('Jahr 3'!$J$38:$J$42,MATCH('Auswertung Firmen'!A24,'Jahr 3'!$I$38:$I$42,0)) ->  | G24: =E24-F24 ->  | H24: =G24/B24 -> 
A25: Firma C | B25: =INDEX(Grunddaten!$B$14:$B$18,MATCH(A25,Grunddaten!$A$14:$A$18,0)) -> 30000000 | C25: =INDEX('Jahr 3'!$H$38:$H$42,MATCH('Auswertung Firmen'!A25,'Jahr 3'!$I$38:$I$42,0)) ->  | D25: =INDEX(Grunddaten!$B$6:$B$10,MATCH(C25,Grunddaten!$A$6:$A$10,0)) ->  | E25: =D25*B25 ->  | F25: =INDEX('Jahr 3'!$J$38:$J$42,MATCH('Auswertung Firmen'!A25,'Jahr 3'!$I$38:$I$42,0)) ->  | G25: =E25-F25 ->  | H25: =G25/B25 -> 
A26: Firma D | B26: =INDEX(Grunddaten!$B$14:$B$18,MATCH(A26,Grunddaten!$A$14:$A$18,0)) -> 400000000 | C26: =INDEX('Jahr 3'!$H$38:$H$42,MATCH('Auswertung Firmen'!A26,'Jahr 3'!$I$38:$I$42,0)) ->  | D26: =INDEX(Grunddaten!$B$6:$B$10,MATCH(C26,Grunddaten!$A$6:$A$10,0)) ->  | E26: =D26*B26 ->  | F26: =INDEX('Jahr 3'!$J$38:$J$42,MATCH('Auswertung Firmen'!A26,'Jahr 3'!$I$38:$I$42,0)) ->  | G26: =E26-F26 ->  | H26: =G26/B26 -> 
A27: Firma E | B27: =INDEX(Grunddaten!$B$14:$B$18,MATCH(A27,Grunddaten!$A$14:$A$18,0)) -> 7000000000 | C27: =INDEX('Jahr 3'!$H$38:$H$42,MATCH('Auswertung Firmen'!A27,'Jahr 3'!$I$38:$I$42,0)) ->  | D27: =INDEX(Grunddaten!$B$6:$B$10,MATCH(C27,Grunddaten!$A$6:$A$10,0)) ->  | E27: =D27*B27 ->  | F27: =INDEX('Jahr 3'!$J$38:$J$42,MATCH('Auswertung Firmen'!A27,'Jahr 3'!$I$38:$I$42,0)) ->  | G27: =E27-F27 ->  | H27: =G27/B27 ->  | K27: Zurück zur Zuweisung Manager Jahr 3
A29: 4. Jahr | B29: Kapitalisierung | C29: CEO | D29: Kapitalrendite brutto, in % | E29: Gewinn brutto, in CHF | F29: Jahresgehalt, in CHF | G29: Gewinn netto, in CHF | H29: Kapitalrendite netto, in %
A30: Firma A | B30: =INDEX(Grunddaten!$B$14:$B$18,MATCH(A30,Grunddaten!$A$14:$A$18,0)) -> 5000000 | C30: =INDEX('Jahr 4'!$H$38:$H$42,MATCH('Auswertung Firmen'!A30,'Jahr 4'!$I$38:$I$42,0)) -> Albert Adam | D30: =INDEX(Grunddaten!$B$6:$B$10,MATCH(C30,Grunddaten!$A$6:$A$10,0)) -> 0.14 | E30: =D30*B30 -> 700000 | F30: =INDEX('Jahr 4'!$J$38:$J$42,MATCH('Auswertung Firmen'!A30,'Jahr 4'!$I$38:$I$42,0)) -> 0 | G30: =E30-F30 -> 700000 | H30: =G30/B30 -> 0.14
A31: Firma B | B31: =INDEX(Grunddaten!$B$14:$B$18,MATCH(A31,Grunddaten!$A$14:$A$18,0)) -> 10000000 | C31: =INDEX('Jahr 4'!$H$38:$H$42,MATCH('Auswertung Firmen'!A31,'Jahr 4'!$I$38:$I$42,0)) ->  | D31: =INDEX(Grunddaten!$B$6:$B$10,MATCH(C31,Grunddaten!$A$6:$A$10,0)) ->  | E31: =D31*B31 ->  | F31: =INDEX('Jahr 4'!$J$38:$J$42,MATCH('Auswertung Firmen'!A31,'Jahr 4'!$I$38:$I$42,0)) ->  | G31: =E31-F31 ->  | H31: =G31/B31 -> 
A32: Firma C | B32: =INDEX(Grunddaten!$B$14:$B$18,MATCH(A32,Grunddaten!$A$14:$A$18,0)) -> 30000000 | C32: =INDEX('Jahr 4'!$H$38:$H$42,MATCH('Auswertung Firmen'!A32,'Jahr 4'!$I$38:$I$42,0)) ->  | D32: =INDEX(Grunddaten!$B$6:$B$10,MATCH(C32,Grunddaten!$A$6:$A$10,0)) ->  | E32: =D32*B32 ->  | F32: =INDEX('Jahr 4'!$J$38:$J$42,MATCH('Auswertung Firmen'!A32,'Jahr 4'!$I$38:$I$42,0)) ->  | G32: =E32-F32 ->  | H32: =G32/B32 -> 
A33: Firma D | B33: =INDEX(Grunddaten!$B$14:$B$18,MATCH(A33,Grunddaten!$A$14:$A$18,0)) -> 400000000 | C33: =INDEX('Jahr 4'!$H$38:$H$42,MATCH('Auswertung Firmen'!A33,'Jahr 4'!$I$38:$I$42,0)) ->  | D33: =INDEX(Grunddaten!$B$6:$B$10,MATCH(C33,Grunddaten!$A$6:$A$10,0)) ->  | E33: =D33*B33 ->  | F33: =INDEX('Jahr 4'!$J$38:$J$42,MATCH('Auswertung Firmen'!A33,'Jahr 4'!$I$38:$I$42,0)) ->  | G33: =E33-F33 ->  | H33: =G33/B33 -> 
A34: Firma E | B34: =INDEX(Grunddaten!$B$14:$B$18,MATCH(A34,Grunddaten!$A$14:$A$18,0)) -> 7000000000 | C34: =INDEX('Jahr 4'!$H$38:$H$42,MATCH('Auswertung Firmen'!A34,'Jahr 4'!$I$38:$I$42,0)) ->  | D34: =INDEX(Grunddaten!$B$6:$B$10,MATCH(C34,Grunddaten!$A$6:$A$10,0)) ->  | E34: =D34*B34 ->  | F34: =INDEX('Jahr 4'!$J$38:$J$42,MATCH('Auswertung Firmen'!A34,'Jahr 4'!$I$38:$I$42,0)) ->  | G34: =E34-F34 ->  | H34: =G34/B34 ->  | K34: Zurück zur Zuweisung Manager Jahr 4

Sheet Grafiken
A1: Spieltheorie - Spitzenverdiener
A2: Lernspiel Cheflöhne - Grafiken

Sheet Musterlösung
A1: Spieltheorie - Spitzenverdiener
A2: Lernspiel Cheflöhne - Musterlösung (vgl. Aufgabe 2 im Aufgabenset)
B4: Siehe Grunddaten | C4: Siehe Lösung unten | D4: Siehe Grunddaten | E4: Kapitalrendite (brutto, %) * Kapitalisierung | F4: Siehe Lösung unten | G4: Gewinn (brutto, CHF) - Jahresgehalt (CHF) | H4: Gewinn (netto, CHF) / Kapitalisierung
B7: Kapitalisierung | C7: CEO | D7: Kapitalrendite brutto, in % | E7: Gewinn brutto, in CHF | F7: Jahresgehalt, in CHF | G7: Gewinn netto, in CHF | H7: Kapitalrendite netto, in %
A8: Firma A | B8: =INDEX(Grunddaten!$B$14:$B$18,MATCH(A8,Grunddaten!$A$14:$A$18,0)) -> 5000000 | C8: Normale Führungsperson | D8: 0.1 | E8: =D8*B8 -> 500000 | F8: 300000 | G8: =E8-F8 -> 200000 | H8: =G8/B8 -> 0.04
A9: Firma B | B9: =INDEX(Grunddaten!$B$14:$B$18,MATCH(A9,Grunddaten!$A$14:$A$18,0)) -> 10000000 | C9: Dieter Dim | D9: 0.11 | E9: =D9*B9 -> 1100000 | F9: =C24 -> 350000 | G9: =E9-F9 -> 750000 | H9: =G9/B9 -> 0.075
A10: Firma C | B10: =INDEX(Grunddaten!$B$14:$B$18,MATCH(A10,Grunddaten!$A$14:$A$18,0)) -> 30000000 | C10: Claudia Custer | D10: 0.12 | E10: =D10*B10 -> 3600000 | F10: =D25 -> 500000 | G10: =E10-F10 -> 3100000 | H10: =G10/B10 -> 0.1033333333
A11: Firma D | B11: =INDEX(Grunddaten!$B$14:$B$18,MATCH(A11,Grunddaten!$A$14:$A$18,0)) -> 400000000 | C11: Bertha Binnig | D11: 0.13 | E11: =D11*B11 -> 52000000 | F11: =E26 -> 1200000 | G11: =E11-F11 -> 50800000 | H11: =G11/B11 -> 0.127
A12: Firma E | B12: =INDEX(Grunddaten!$B$14:$B$18,MATCH(A12,Grunddaten!$A$14:$A$18,0)) -> 7000000000 | C12: Albert Adam | D12: 0.14 | E12: =D12*B12 -> 980000000 | F12: =F27 -> 16300000 | G12: =E12-F12 -> 963700000 | H12: =G12/B12 -> 0.1376714286
B14: Zahlungsbereitschaft für 1 Prozent mehr Gewinn
A16: Firma A | B16: =B8*0.01 -> 50000
A17: Firma B | B17: =B9*0.01 -> 100000
A18: Firma C | B18: =B10*0.01 -> 300000
A19: Firma D | B19: =B11*0.01 -> 4000000
A20: Firma E | B20: =B12*0.01 -> 70000000
B22: Zahlungsbereitschaft für Führungskräfte
B23: Normale Führungsperson | C23: Dieter Diem | D23: Claudia Custer | E23: Bertha Binnig | F23: Albert Adam
A24: Firma A | B24: 300000 | C24: =B24+B16 -> 350000 | D24: =B24+2*B16 -> 400000 | E24: =B24+3*B16 -> 450000 | F24: =B24+4*B16 -> 500000
A25: Firma B | B25: 300000 | C25: =B25+B17 -> 400000 | D25: =B25+2*B17 -> 500000 | E25: =B25+3*B17 -> 600000 | F25: =B25+4*B17 -> 700000
A26: Firma C | B26: 300000 | C26: =B26+B18 -> 600000 | D26: =B26+2*B18 -> 900000 | E26: =B26+3*B18 -> 1200000 | F26: =B26+4*B18 -> 1500000
A27: Firma D | B27: 300000 | C27: =B27+B19 -> 4300000 | D27: =B27+2*B19 -> 8300000 | E27: =B27+3*B19 -> 12300000 | F27: =B27+4*B19 -> 16300000
A28: Firma E | B28: 300000 | C28: =B28+B20 -> 70300000 | D28: =B28+2*B20 -> 140300000 | E28: =B28+3*B20 -> 210300000 | F28: =B28+4*B20 -> 280300000
A30: Lösung:
A31: Firma A engagiert eine normale Führungsperson zu 0.3 Mio.
A32: Firma B engagiert Dieter Dim zu 0.35 Mio.
A33: Firma C engagiert Claudia Custer zu 0.5 Mio.
A34: Firma D engagiert Bertha Binnig zu 1.2 Mio.
A35: Firma E engagiert Albert Adam zu 16.3 Mio.
